{"text_format":"1","workbook":"xlsx","n_sheets":1,"sheets":["Cronómetro"],"not_rendered":{"charts":0,"images":0,"macros":1,"external_links":0,"defined_names":30,"comments":0,"pivot_tables":0},"unopened":[],"bounds":{"document_bytes":16777216,"sheet_cells":100000,"rows_first":2000,"rows_last":500,"rows_between":2000,"halvings":0,"cell_chars":16384,"cell_head_chars":4096},"cells_cut":0,"cells_raw":0,"read":"whole","date_system":"1900"}

{"sheet":"Cronómetro","index":0,"n_rows":97,"n_cols":11,"rows_kept":97,"cut":false,"hidden":false,"merged":[]}
[]
[]
[]
[null,null,null,null,null,"Segundos"]
[null,null,null,null,null,4]
[null,null,null,null,"Minuto","Segundo",null,null,"Imagen","T"]
[null,null,null,null,{"$f":"+ROUNDDOWN(F5/60,0)","v":0},{"$f":"+F5-E7*60","v":4},null,null,2,10,0]
[null,null,null,null,null,null,null,null,1,1,{"$f":"+K7+350/$J$7","v":35}]
[null,null,null,null,null,null,null,null,6,2,{"$f":"+K8+350/$J$7","v":70}]
[null,null,null,null,null,null,null,null,12,3,105]
[null,null,null,null,null,null,null,null,1,4,140]
[null,null,null,null,null,null,null,null,2,5,175]
[null,null,null,null,null,null,null,null,1,6,210]
[null,null,null,null,null,null,null,null,6,7,245]
[null,null,null,null,null,null,null,null,8,8,280]
[null,null,null,null,null,null,null,null,9,9,315]
[null,null,null,null,null,null,null,null,9,10,350]
[null,null,null,null,null,null,null,null,11,11,385]
[null,null,null,null,null,null,null,null,3,12,420]
[null,null,null,null,null,null,null,null,5,13,455]
[null,null,null,null,null,null,null,null,3,14,490]
[null,null,null,null,null,null,null,null,6,15,525]
[null,null,null,null,null,null,null,null,10,16,560]
[null,null,null,null,null,null,null,null,6,17,595]
[null,null,null,null,null,null,null,null,1,18,630]
[null,null,null,null,null,null,null,null,8,19,665]
[null,null,null,null,null,null,null,null,12,20,700]
[null,null,null,null,null,null,null,null,10,21,735]
[null,null,null,null,null,null,null,null,9,22,770]
[null,null,null,null,null,null,null,null,10,23,805]
[null,null,null,null,null,null,null,null,12,24,840]
[null,null,null,null,null,null,null,null,11,25,875]
[null,null,null,null,null,null,null,null,8,26,910]
[null,null,null,null,null,null,null,null,5,27,945]
[null,null,null,null,null,null,null,null,3,28,980]
[null,null,null,null,null,null,null,null,11,29,1015]
[null,null,null,null,null,null,null,null,2,30,1050]
[null,null,null,null,null,null,null,null,3,31,1085]
[null,null,null,null,null,null,null,null,1,32,1120]
[null,null,null,null,null,null,null,null,4,33,1155]
[null,null,null,null,null,null,null,null,9,34,1190]
[null,null,null,null,null,null,null,null,8,35,1225]
[null,null,null,null,null,null,null,null,9,36,1260]
[null,null,null,null,null,null,null,null,4,37,1295]
[null,null,null,null,null,null,null,null,11,38,1330]
[null,null,null,null,null,null,null,null,9,39,1365]
[null,null,null,null,null,null,null,null,7,40,1400]
[null,null,null,null,null,null,null,null,1,41,1435]
[null,null,null,null,null,null,null,null,4,42,1470]
[null,null,null,null,null,null,null,null,2,43,1505]
[null,null,null,null,null,null,null,null,4,44,1540]
[null,null,null,null,null,null,null,null,7,45,1575]
[null,null,null,null,null,null,null,null,4,46,1610]
[null,null,null,null,null,null,null,null,1,47,1645]
[null,null,null,null,null,null,null,null,9,48,1680]
[null,null,null,null,null,null,null,null,10,49,1715]
[null,null,null,null,null,null,null,null,8,50,1750]
[null,null,null,null,null,null,null,null,11,51,1785]
[null,null,null,null,null,null,null,null,12,52,1820]
[null,null,null,null,null,null,null,null,12,53,1855]
[null,null,null,null,null,null,null,null,7,54,1890]
[null,null,null,null,null,null,null,null,12,55,1925]
[null,null,null,null,null,null,null,null,3,56,1960]
[null,null,null,null,null,null,null,null,3,57,1995]
[null,null,null,null,null,null,null,null,5,58,2030]
[null,null,null,null,null,null,null,null,2,59,2065]
[null,null,null,null,null,null,null,null,2,60,2100]
[null,null,null,null,null,null,null,null,5,61,2135]
[null,null,null,null,null,null,null,null,6,62,2170]
[null,null,null,null,null,null,null,null,4,63,2205]
[null,null,null,null,null,null,null,null,6,64,2240]
[null,null,null,null,null,null,null,null,8,65,2275]
[null,null,null,null,null,null,null,null,11,66,{"$f":"+K72+350/$J$7","v":2310}]
[null,null,null,null,null,null,null,null,12,67,2345]
[null,null,null,null,null,null,null,null,1,68,2380]
[null,null,null,null,null,null,null,null,2,69,2415]
[null,null,null,null,null,null,null,null,9,70,2450]
[null,null,null,null,null,null,null,null,12,71,2485]
[null,null,null,null,null,null,null,null,2,72,2520]
[null,null,null,null,null,null,null,null,9,73,2555]
[null,null,null,null,null,null,null,null,5,74,2590]
[null,null,null,null,null,null,null,null,2,75,2625]
[null,null,null,null,null,null,null,null,1,76,2660]
[null,null,null,null,null,null,null,null,7,77,2695]
[null,null,null,null,null,null,null,null,9,78,2730]
[null,null,null,null,null,null,null,null,4,79,2765]
[null,null,null,null,null,null,null,null,3,80,2800]
[null,null,null,null,null,null,null,null,4,81,2835]
[null,null,null,null,null,null,null,null,11,82,2870]
[null,null,null,null,null,null,null,null,7,83,2905]
[null,null,null,null,null,null,null,null,6,84,2940]
[null,null,null,null,null,null,null,null,12,85,2975]
[null,null,null,null,null,null,null,null,11,86,3010]
[null,null,null,null,null,null,null,null,10,87,3045]
[null,null,null,null,null,null,null,null,11,88,3080]
[null,null,null,null,null,null,null,null,7,89,3115]
[null,null,null,null,null,null,null,null,12,90,3150]